bitfinex/quotes_ETHUSD_20250519
["timestamp","ask_amount","ask_price","bid_price","bid_amount"]
[1747665781208,30.09574675,2445.6,2445.5,0.13479554]
[1747665781450,30.8416786,2445.6,2445.5,0.13479554]
[1747665781659,31.60483467,2445.6,2445.5,0.13479554]
[1747665782016,0.7561,2444.9,2444.8,0.13081804]
[1747665782213,29.98831498,2444.9,2444.8,0.13081804]
[1747665782452,30.49724683,2444.9,2444.8,0.13081804]
[1747665783650,12.09064877,2444.6,2444.5,0.13479554]
[1747665783946,34.91485446,2444.6,2444.5,0.13479554]
[1747665784447,30.51334877,2444.6,2444.5,0.13479554]
[1747665784652,43.5267,2444.6,2444.5,0.13479554]
[1747665784855,8.548,2444.6,2444.5,4.22561165]
[1747665785019,8.548,2444.6,2444.5,4.09081611]
[1747665785220,8.548,2444.6,2444.3,0.7537]
[1747665785432,8.548,2444.6,2444.3,4.84476792]
[1747665785630,8.548,2444.6,2444.5,4.09081611]
[1747665785832,8.547,2445.0,2444.8,4.09028546]
[1747665786040,8.547,2445.0,2444.4,0.89359602]
[1747665786228,12.63700908,2445.0,2444.5,4.09071617]
[1747665786442,0.7799,2444.9,2444.0,0.8288]
[1747665786641,8.82096815,2444.9,2444.0,0.8288]
[1747665786864,8.7799,2444.9,2444.0,0.8288]
[1747665787155,4.09089837,2444.5,2443.9,4.09166917]
[1747665787458,0.04106815,2444.5,2443.8,0.8288]
[1747665787754,4.84875261,2445.2,2444.3,0.7986]
[1747665787961,8.557,2444.9,2444.6,4.09064877]
[1747665788129,8.557,2444.9,2444.8,4.09031413]
[1747665788524,8.557,2444.9,2444.7,4.09046082]
[1747665788726,8.557,2444.9,2444.7,4.09039589]
[1747665789134,8.557,2444.9,2444.6,4.090599]
[1747665789339,8.557,2444.9,2444.7,4.09046748]
[1747665789540,8.557,2444.9,2444.3,0.7986]
[1747665789541,8.557,2444.9,2444.8,4.09031413]
[1747665789740,8.557,2444.9,2444.8,4.89791413]
[1747665789925,17.66,2445.3,2444.8,5.79674085]
[1747665790123,17.66,2445.3,2445.2,4.08964501]
[1747665790361,8.548,2445.3,2445.2,4.08964501]
[1747665790726,8.8894991,2445.3,2445.2,4.08964501]
[1747665791059,4.08990139,2445.1,2444.6,4.09059624]
[1747665791224,0.8146,2445.2,2444.5,0.8167]
[1747665791225,0.3414991,2445.0,2444.5,0.8167]
[1747665791421,0.3414991,2445.0,2444.8,4.09031413]
[1747665791422,8.548,2444.9,2444.8,4.09031413]
[1747665791748,8.548,2444.9,2444.8,4.49934554]
[1747665791930,0.3414991,2445.0,2444.9,4.09014683]
[1747665795684,0.3414991,2445.0,2444.8,0.7888]
[1747665795982,8.547,2445.2,2444.9,4.09014683]
[1747665796472,8.547,2445.2,2444.8,4.09021475]
[1747665796687,8.547,2445.2,2445.0,4.0899379]
[1747665798073,8.547,2445.2,2444.8,4.09024887]
[1747665798477,8.547,2445.2,2444.9,4.09014181]
[1747665798787,0.3414991,2445.1,2444.8,4.09025686]
[1747665798944,0.3414991,2445.1,2444.8,4.09028573]
[1747665799144,0.3414991,2445.1,2444.9,4.09002665]
[1747665799544,1.1012991,2445.1,2444.7,4.0903397]
[1747665799780,1.1012991,2445.1,2444.5,4.91302485]
[1747665799781,4.0901092,2445.0,2444.5,0.8223]
[1747665799974,4.0904592,2444.8,2444.3,4.09108536]
[1747665800276,8.546,2444.7,2444.3,4.09108536]
[1747665800476,8.546,2444.7,2444.4,4.09098109]
[1747665800685,8.546,2444.7,2443.8,0.92729554]
[1747665800686,4.6226433,2444.6,2443.8,0.92729554]
[1747665800889,0.82766815,2444.6,2443.8,0.92729554]
[1747665801181,8.545,2444.5,2444.4,4.09098347]
[1747665803789,0.7866,2445.0,2444.3,0.7569]
[1747665803974,17.093,2444.9,2444.8,4.09024986]
[1747665804173,27.654,2445.1,2444.3,4.84803701]
[1747665804347,17.093,2444.9,2444.8,4.09031413]
[1747665804547,17.093,2444.9,2444.4,0.4848037]
[1747665804748,0.8301,2444.8,2444.5,4.09074985]
[1747665804949,0.8301,2444.8,2444.5,4.09069274]
[1747665805159,0.8301,2444.8,2444.3,0.7569]
[1747665805160,0.8301,2444.8,2444.3,4.84797229]
[1747665805360,0.8301,2444.8,2444.4,4.09098347]
[1747665805648,0.8301,2444.8,2444.6,4.09057347]
[1747665806161,17.093,2444.9,2444.5,4.09072484]
[1747665806352,17.093,2444.9,2444.6,4.09064675]
[1747665806543,21.18317516,2444.9,2444.5,4.09072406]
[1747665806747,17.093,2444.9,2444.6,4.09064325]
[1747665806985,17.093,2444.9,2444.5,4.09080692]
[1747665807184,17.093,2444.9,2444.6,4.09054976]
[1747665807483,17.093,2444.9,2444.3,0.7569]
[1747665807484,8.545,2444.8,2444.3,4.84804683]
[1747665807682,8.545,2444.8,2444.4,4.09098347]
[1747665807898,8.545,2444.8,2444.5,4.0907183]
[1747665808210,4.09122257,2444.3,2443.9,5.03360452]
[1747665808385,0.789,2444.6,2443.9,5.03360452]
[1747665808386,27.084,2444.2,2443.9,0.13479554]
[1747665808886,27.084,2444.2,2443.7,4.0920683]
[1747665808887,31.17540544,2444.2,2443.7,4.0920683]
[1747665809100,27.084,2444.2,2443.7,4.0920683]
[1747665809466,27.084,2444.2,2443.9,4.09180401]
[1747665809652,9.99,2444.2,2443.8,0.12783382]
[1747665809856,9.99,2444.2,2444.1,4.09148561]
[1747665810056,18.534,2444.2,2444.1,4.09148561]
[1747665811069,18.535,2444.2,2444.1,4.92108561]
[1747665811291,9.99,2444.5,2444.4,4.09098347]
[1747665811460,8.545,2444.5,2444.4,4.09098347]
[1747665812086,8.545,2444.5,2444.2,4.09125227]
[1747665812288,8.545,2444.5,2444.0,4.09155026]
[1747665812658,12.63589794,2444.5,2444.1,4.09147555]
[1747665812858,8.545,2444.5,2444.2,4.09130991]
[1747665815074,8.545,2444.5,2444.1,4.0913953]
[1747665815394,9.99,2444.4,2444.0,4.09156642]
[1747665815587,9.99,2444.4,2444.1,4.09147491]
[1747665815920,0.7938,2444.3,2443.8,5.03258449]
[1747665816206,9.99,2444.2,2443.8,4.22668449]
[1747665816498,4.09174295,2444.0,2443.8,0.13479554]
[1747665816800,12.63482045,2443.9,2443.8,0.13479554]
[1747665816963,23.39722045,2443.9,2443.8,0.13479554]
[1747665817369,19.61535537,2443.9,2443.8,0.13479554]
[1747665819009,23.70717582,2443.9,2443.8,0.13479554]
[1747665819211,31.70717582,2443.9,2443.8,0.13479554]
[1747665819412,35.72367621,2443.9,2443.8,0.13479554]
[1747665820214,31.70717582,2443.9,2443.8,0.13479554]
[1747665821607,35.72367621,2443.9,2443.8,0.13479554]
[1747665823613,4.0923228,2443.6,2443.0,4.09331299]
[1747665823810,12.6366209,2443.5,2442.4,0.13479554]
[1747665824011,9.318,2443.4,2443.0,4.09325865]
[1747665824307,9.318,2443.4,2442.8,4.2214321]
[1747665824308,14.08283607,2443.3,2442.8,4.2214321]
[1747665824513,9.99,2443.3,2443.0,4.09328149]
[1747665825095,9.99,2443.3,2442.9,4.0934031]
[1747665825514,9.99,2443.3,2443.0,4.09325151]
[1747665825717,9.99,2443.3,2442.7,0.8099]
[1747665826126,9.99,2443.3,2443.0,4.0932545]
[1747665826331,9.99,2443.3,2442.9,4.09337709]
[1747665827231,9.99,2443.3,2443.1,4.09306085]
[1747665827803,9.99,2443.3,2443.1,4.09300382]
[1747665828197,9.99,2443.3,2443.0,4.09326203]
[1747665828839,9.99,2443.3,2442.7,0.8099]
[1747665829303,17.088,2443.2,2443.1,4.09316032]
[1747665829499,17.088,2443.2,2442.9,4.09340531]
[1747665830042,17.088,2443.2,2443.0,4.09332562]
[1747665830352,27.078,2443.2,2443.0,4.09332562]
[1747665830706,27.078,2443.2,2443.1,4.09316032]
[1747665830908,27.078,2443.2,2443.0,4.09323106]
[1747665831215,27.078,2443.2,2443.0,4.09322477]
[1747665831605,27.078,2443.2,2443.1,4.09316032]
[1747665831843,27.078,2443.2,2443.0,4.09328993]
[1747665832014,0.7792,2443.1,2442.9,4.09349372]
[1747665832217,18.532,2443.2,2443.1,4.09316032]
[1747665832406,9.99,2443.2,2443.1,4.09316032]
[1747665832606,18.532,2443.2,2443.1,4.09316032]
[1747665833707,18.532,2443.2,2442.8,0.8098]
[1747665833925,18.532,2443.2,2442.5,0.8167]
[1747665834124,19.3301,2443.2,2442.9,4.09344416]
[1747665834411,18.532,2443.2,2443.0,4.09323185]
[1747665834606,18.532,2443.2,2442.6,4.09399819]
[1747665834920,18.532,2443.2,2443.0,4.09317759]
[1747665835237,18.532,2443.2,2442.9,4.09345594]
[1747665835406,18.532,2443.2,2443.0,4.09326501]
[1747665835608,18.532,2443.2,2442.7,0.49106982]
[1747665835964,18.532,2443.2,2443.0,4.09324877]
[1747665836141,18.532,2443.2,2443.1,4.09316032]
[1747665836311,18.532,2443.2,2443.0,4.09328507]
[1747665836512,18.532,2443.2,2442.9,4.0934192]
[1747665836734,0.788,2443.1,2442.2,0.8266]
[1747665836945,4.09342922,2443.0,2442.2,0.8266]
[1747665837120,8.546,2442.9,2442.5,4.09400276]
[1747665837333,8.546,2442.9,2442.6,4.09391632]
[1747665837749,9.00598913,2442.9,2442.5,4.09407034]
[1747665837934,8.546,2442.9,2442.5,4.09407034]
[1747665838133,8.546,2442.9,2442.5,4.09404581]
[1747665838339,8.546,2442.9,2442.6,4.09395989]
[1747665838543,8.546,2442.9,2442.4,4.09429939]
[1747665839125,8.546,2442.9,2442.6,4.09399342]
[1747665839324,8.546,2442.9,2442.5,4.09406792]
[1747665839521,8.546,2442.9,2442.4,4.59978567]
[1747665839824,8.546,2442.9,2442.6,4.09390722]
[1747665840344,8.546,2442.9,2442.5,4.09406196]
[1747665840526,8.546,2442.9,2442.6,4.09399625]
[1747665840722,12.6395863,2442.9,2442.5,4.0940679]
[1747665840955,8.546,2442.9,2442.4,4.09426955]
[1747665841125,8.546,2442.9,2442.3,4.09442992]
[1747665841126,4.09375113,2442.8,2442.3,4.09442992]
[1747665841332,8.54,2442.7,2442.4,4.09433338]
[1747665841514,8.54,2442.7,2442.2,0.8266]
[1747665841714,8.54,2442.7,2442.4,4.0942334]
[1747665841915,8.54,2442.7,2442.5,4.22513943]
[1747665842410,9.99,2442.6,2442.5,5.05709584]
[1747665842661,8.539,2442.6,2442.5,5.05709977]
[1747665843163,9.99,2443.0,2442.9,4.09349543]
[1747665843319,18.529,2443.0,2442.9,4.09349543]
[1747665844017,18.529,2443.0,2442.9,0.13097755]
[1747665844718,18.529,2443.0,2442.9,4.22447298]
[1747665845465,9.99,2443.0,2442.9,5.13957706]
[1747665845752,18.528,2443.0,2442.9,5.26745228]
[1747665846313,18.528,2443.0,2442.9,4.3523482]
[1747665848264,18.528,2443.0,2442.9,0.25885277]
[1747665848464,9.99,2443.0,2442.9,4.3523482]
[1747665848670,9.99,2443.0,2442.9,5.1223482]
[1747665848829,9.99,2443.0,2442.9,5.6723482]
[1747665849028,9.99,2443.0,2442.9,6.64893958]
[1747665849264,8.537,2443.2,2443.1,4.09316032]
[1747665850165,8.547,2443.3,2443.2,4.09299279]
[1747665850369,9.99,2443.7,2443.3,4.88582527]
[1747665850574,8.536,2443.6,2443.5,4.09249028]
[1747665851337,8.536,2444.2,2444.1,4.09132088]
[1747665851573,8.536,2444.2,2443.8,4.88053981]
[1747665851574,12.62733348,2444.2,2443.8,4.88053981]
[1747665851772,8.536,2444.2,2443.9,0.12782501]
[1747665852374,8.536,2444.2,2443.9,4.09175031]
[1747665852537,8.547,2444.3,2444.0,4.09156919]
[1747665852742,8.534,2444.2,2444.0,4.09156919]
[1747665853271,8.547,2444.3,2444.2,4.09131822]
[1747665853653,17.081,2444.3,2444.2,4.09131822]
[1747665854261,17.081,2444.3,2444.1,4.0914102]
[1747665854574,17.081,2444.3,2444.1,4.09148561]
[1747665855078,17.081,2444.3,2444.0,4.90422269]
[1747665855246,17.081,2444.3,2444.1,4.09147269]
[1747665855445,17.081,2444.3,2444.2,4.09131822]
[1747665855776,17.081,2444.3,2443.7,0.7688]
[1747665855940,17.081,2444.3,2443.9,4.09173445]
[1747665856372,21.96485085,2444.3,2443.8,4.21973592]
[1747665856572,17.8737,2444.3,2443.9,4.09170222]
[1747665856973,21.96491711,2444.3,2443.8,4.09198788]
[1747665857377,9.99,2444.2,2443.9,4.09179905]
[1747665857743,9.99,2444.2,2443.6,0.13479554]
[1747665857987,4.13255376,2444.1,2443.6,4.0922224]
[1747665858286,4.09198798,2443.8,2443.4,4.09262734]
[1747665858451,17.064,2443.7,2443.5,4.09248932]
[1747665858782,17.064,2443.7,2443.4,4.09258251]
[1747665858981,17.064,2443.7,2443.4,4.09265777]
[1747665859370,17.064,2443.7,2443.5,4.09238199]
[1747665859677,8.531,2443.7,2443.6,4.0923228]
[1747665860782,8.531,2443.7,2443.5,4.09232932]
[1747665860998,8.531,2443.7,2443.6,4.0923228]
[1747665861149,8.531,2443.7,2443.5,4.09239614]
[1747665861349,8.531,2443.7,2443.6,4.0923228]
[1747665861653,8.531,2443.7,2443.4,4.09265777]
[1747665861859,8.531,2443.7,2443.5,4.09241144]
[1747665862398,8.531,2443.7,2443.6,4.0923228]
[1747665862599,8.531,2443.7,2443.5,4.092403]
[1747665862902,8.531,2443.7,2443.6,4.0923228]
[1747665863281,18.521,2443.7,2443.6,4.0923228]
[1747665864003,18.518,2443.7,2443.6,4.0923228]
[1747665864204,9.99,2443.7,2443.6,4.91079538]
[1747665864389,9.99,2443.7,2443.6,5.69119538]
[1747665864591,9.99,2443.7,2443.6,6.24119538]
[1747665865199,9.99,2443.7,2443.6,6.36902018]
[1747665865579,9.99,2443.7,2443.6,6.49991147]
[1747665867025,9.99,2444.4,2444.3,4.09115084]
[1747665867172,9.99,2444.6,2444.5,4.09081611]
[1747665867368,18.517,2444.6,2444.5,4.09081611]
[1747665869184,9.99,2444.6,2444.5,4.09081611]
[1747665869389,18.515,2444.6,2444.5,4.90899578]
[1747665870476,18.515,2444.6,2444.5,4.09081611]
[1747665870785,18.515,2444.6,2444.4,4.09098063]
[1747665872008,18.515,2444.6,2444.5,4.09081611]
[1747665874082,9.99,2444.6,2444.5,4.09081611]
[1747665874287,18.512,2444.6,2444.5,4.09081611]
[1747665875080,9.99,2444.6,2444.5,4.09081611]
[1747665875401,18.511,2444.6,2444.5,4.09081611]
[1747665880096,18.511,2444.6,2444.5,4.86761611]
[1747665880592,18.511,2444.6,2444.5,4.09081611]
[1747665881327,9.99,2445.0,2444.9,4.09014683]
[1747665881619,8.531,2445.5,2445.4,4.08931054]
[1747665881783,8.517,2445.5,2445.4,4.08931054]
[1747665881979,8.517,2445.5,2445.1,4.08974554]
[1747665882182,8.517,2445.5,2444.9,0.7572]
[1747665882383,10.03106815,2445.4,2445.1,4.0897234]
[1747665882592,10.7662,2445.4,2445.1,4.0897234]
[1747665882798,9.99,2445.3,2445.1,4.0897234]
[1747665883423,9.99,2445.3,2445.2,4.08964501]
[1747665883593,18.506,2445.3,2445.2,4.90758801]
[1747665883796,18.505,2445.3,2445.2,4.90758801]
[1747665884899,18.505,2445.3,2445.2,4.08964501]
[1747665886331,9.99,2445.3,2445.2,4.92254501]
[1747665886621,9.99,2445.3,2445.2,5.47254501]
[1747665886819,9.99,2445.3,2445.2,5.60028725]
[1747665888423,9.99,2445.3,2445.2,5.05028725]
[1747665888995,9.99,2445.3,2445.2,5.90877359]
[1747665889990,9.99,2445.3,2445.2,5.78103135]
[1747665890526,9.99,2445.6,2445.5,4.08914332]
[1747665890724,8.51,2445.6,2445.4,4.08923075]
[1747665891053,8.51,2445.6,2445.2,0.13080793]
[1747665891054,8.0,2445.5,2445.2,0.13080793]
[1747665891327,8.0,2445.3,2445.2,0.13080793]
[1747665892204,8.0,2445.3,2444.9,4.92297411]
[1747665892417,8.0,2445.3,2444.9,4.09007411]
[1747665892643,8.0,2445.3,2444.8,4.09025068]
[1747665892831,4.08965697,2445.2,2444.8,4.09025068]
[1747665893139,12.08952473,2445.3,2444.8,4.09025068]
[1747665893332,12.08952473,2445.3,2444.9,0.13083479]
[1747665893641,8.0,2445.3,2445.1,4.08979893]
[1747665894012,8.0,2445.3,2445.1,4.08979893]
[1747665894201,8.0,2445.3,2444.9,5.13535729]
[1747665894406,8.0,2445.3,2445.0,4.08997668]
[1747665894725,8.0,2445.3,2445.1,1.3598]
[1747665894929,8.0,2445.3,2445.2,4.08964501]
[1747665895131,8.0,2445.3,2445.1,5.03034684]
[1747665895320,8.0,2445.3,2445.1,0.13083479]
[1747665896415,8.0,2445.3,2444.9,4.86675947]
[1747665896619,8.0,2445.3,2445.0,4.08996782]
[1747665896818,8.0,2445.3,2445.1,4.08980827]
[1747665897617,8.0,2445.3,2444.9,2.53727904]
[1747665897940,8.0,2445.3,2445.0,4.21771625]
[1747665898268,11.12556873,2445.7,2445.1,0.12775365]
[1747665898584,11.12556873,2445.7,2445.6,4.08897612]
[1747665898585,9.99,2445.7,2445.6,4.08897612]
[1747665898737,18.4926,2446.0,2445.5,4.08902035]
[1747665898738,4.08838584,2446.0,2445.5,4.08902035]
[1747665898943,8.0,2445.9,2445.4,0.55]
[1747665899254,8.31352709,2445.9,2445.6,4.08896122]
[1747665899406,8.31352709,2445.9,2445.5,0.12775365]
[1747665899407,12.40209501,2445.9,2445.5,0.12775365]
[1747665899607,12.40209501,2445.9,2445.5,4.21688321]
[1747665899914,12.40209501,2445.9,2445.6,0.12775365]
[1747665900279,8.31352709,2445.9,2445.6,4.2167172]
[1747665900579,8.31352709,2445.9,2445.6,4.08897612]
[1747665900725,8.31352709,2445.9,2445.7,0.7642]
[1747665900726,0.31352709,2445.9,2445.7,0.7642]
[1747665900927,8.514,2446.3,2445.8,0.55]
[1747665901185,17.99,2446.2,2446.0,4.08827661]
[1747665901358,17.99,2446.2,2446.0,4.0882566]
[1747665901556,17.99,2446.2,2445.9,4.21915856]
[1747665901765,17.99,2446.2,2445.9,5.18136893]
[1747665902074,17.99,2446.2,2446.0,4.08830744]
[1747665902273,9.99,2446.2,2446.1,4.0881403]
[1747665902641,9.99,2446.2,2446.0,4.63825207]
[1747665903538,9.99,2446.2,2446.1,4.0881403]
[1747665903864,9.99,2446.2,2446.1,5.05700057]
[1747665905339,17.99,2446.3,2446.1,0.96886027]
[1747665905541,17.99,2446.3,2446.1,5.05696295]
[1747665905754,22.38973716,2446.3,2445.7,4.85291402]
[1747665905955,18.30185508,2446.3,2446.0,4.08818902]
[1747665906165,18.30185508,2446.3,2446.1,4.08800483]
[1747665906567,18.30185508,2446.3,2446.2,4.08797318]
[1747665906801,10.30185508,2446.3,2446.2,4.86227318]
[1747665907002,9.99,2446.3,2446.2,6.30731064]
[1747665907295,9.99,2446.3,2446.2,6.43499812]
[1747665908595,0.31050651,2446.6,2446.2,6.43499812]
[1747665908596,8.0,2446.8,2446.7,4.90113777]
[1747665908762,8.497,2447.1,2446.8,4.08691458]
[1747665908959,8.497,2447.1,2446.7,4.90106602]
[1747665909163,8.0,2447.0,2446.7,4.90106602]
[1747665909594,8.0,2447.0,2446.6,4.0872711]
[1747665909595,8.30579103,2447.0,2446.6,4.0872711]
[1747665909803,8.30579103,2447.0,2446.6,4.9798849]
[1747665909977,8.30579103,2447.0,2446.7,4.08706401]
[1747665909978,0.30579103,2447.0,2446.7,4.08706401]
[1747665910309,8.495,2447.1,2446.8,4.08681251]
[1747665910514,8.0,2447.0,2446.7,5.3883785]
[1747665910702,8.0,2447.0,2446.8,4.71504954]
[1747665911290,8.0,2447.0,2446.8,0.62809923]
[1747665911491,8.0,2447.0,2446.8,4.7150615]
[1747665912703,9.99,2447.3,2447.2,4.08630271]
[1747665912904,18.482,2447.6,2447.2,4.08630271]
[1747665913105,8.0,2447.5,2447.2,4.98545292]
[1747665913466,8.0,2447.5,2447.2,4.98546462]
[1747665913680,10.29885507,2447.6,2447.5,4.08580183]
[1747665913874,16.985,2447.8,2447.5,4.63570372]
[1747665914184,16.985,2447.8,2447.6,4.54919301]
[1747665914389,8.493,2447.8,2447.7,4.08546799]
[1747665914693,0.7871,2448.2,2447.7,4.08537178]
[1747665914694,0.30119497,2447.9,2447.7,4.08537178]
[1747665914892,13.3627415,2448.2,2447.7,4.08537178]
[1747665915104,8.0,2448.0,2447.7,5.08023952]
[1747665915304,8.0,2448.1,2447.7,5.08023952]
[1747665915715,8.0,2448.1,2447.8,4.08520655]
[1747665916187,8.0,2448.1,2447.9,0.55]
[1747665916521,8.0,2448.1,2447.8,0.55]
[1747665916700,4.08487797,2448.1,2447.8,0.99477693]
[1747665916900,0.31047326,2448.2,2447.9,0.55]
[1747665917103,8.493,2448.3,2448.1,4.08480045]
[1747665917433,0.7934,2449.0,2448.3,0.55]
[1747665917581,8.488,2449.0,2448.6,4.91199033]
[1747665917780,8.488,2449.0,2448.6,4.91206456]
[1747665918022,12.5713323,2449.0,2448.6,0.8281]
[1747665918322,4.90140946,2448.9,2448.4,4.08419071]
[1747665918503,12.87425583,2449.0,2448.5,4.08405779]
[1747665918736,8.0,2448.9,2448.5,4.08403536]
[1747665918886,0.30293809,2449.0,2448.6,4.63383276]
[1747665919086,35.4448,2449.1,2448.6,4.63389847]
[1747665919418,13.39201038,2449.1,2448.6,4.95575298]
[1747665919722,4.08354432,2448.9,2448.4,4.08419146]
[1747665919910,4.08346604,2448.9,2448.3,0.55]
[1747665920094,8.0,2448.7,2448.3,4.63444766]
[1747665920279,0.7778,2448.9,2447.8,12.57413766]
[1747665920486,8.7778,2448.9,2447.8,0.7663]
[1747665920684,8.0,2448.6,2448.3,4.90106385]
[1747665920997,8.0,2448.9,2448.5,4.08403882]
[1747665921189,8.0,2448.9,2448.5,4.08396697]
[1747665921982,8.0,2448.9,2448.6,4.08391408]
[1747665922400,0.30909487,2449.1,2448.9,4.08331728]
[1747665922608,0.45037392,2449.2,2448.9,4.08335495]
[1747665922918,0.45037392,2449.2,2448.8,4.08361234]
[1747665922919,0.45037392,2449.2,2448.8,0.55]
[1747665923121,0.45037392,2449.2,2449.0,4.08314096]
[1747665923318,0.45037392,2449.2,2449.1,4.63313257]
[1747665923527,0.45037392,2449.2,2449.1,5.41193257]
[1747665925093,0.02814837,2449.2,2449.1,5.41193257]
[1747665925529,0.02814837,2449.2,2449.1,5.53944122]
[1747665925734,0.02814837,2449.2,2449.1,8.07069079]
[1747665926603,0.02814837,2449.2,2449.1,8.20126348]
[1747665927206,0.02814837,2449.2,2449.1,16.32875583]
[1747665927407,0.7,2450.0,2449.9,5.38989925]
[1747665931057,0.7,2450.0,2449.9,0.55]
[1747665931343,0.7,2450.0,2449.6,4.87231549]
[1747665931344,0.7,2450.0,2449.6,0.7901]
[1747665931548,4.78166784,2450.0,2449.6,1.73088955]
[1747665931843,8.0,2449.9,2449.7,0.55]
[1747665932054,8.483,2449.9,2449.4,0.13479554]
[1747665932543,9.505,2450.0,2449.4,0.13479554]
[1747665932544,1.505,2450.0,2449.4,0.13479554]
[1747665932748,1.505,2450.0,2449.1,0.8281]
[1747665932749,4.08215742,2449.7,2449.3,4.08278272]
[1747665932943,4.08215742,2449.7,2449.3,0.49108827]
[1747665933143,4.08215742,2449.7,2448.8,4.08360189]
[1747665933144,16.471,2449.7,2448.8,4.0835776]
[1747665933311,4.08267302,2449.4,2448.9,4.08346604]
[1747665933653,12.08254616,2449.5,2449.0,4.08321958]
[1747665933859,0.7556,2449.6,2448.9,4.08346604]
[1747665934144,8.0,2449.7,2449.4,0.55]
[1747665934353,12.08222048,2449.7,2449.2,4.08289262]
[1747665934568,8.0,2449.7,2449.2,4.08285643]
[1747665934708,8.0,2449.7,2449.3,4.08279583]
[1747665935462,4.08240225,2449.6,2449.0,4.08315783]
[1747665935615,4.0829331,2449.3,2448.8,0.7829]
[1747665935946,4.0829331,2449.3,2448.7,8.61779554]
[1747665935947,12.0828788,2449.3,2448.7,4.21852366]
[1747665936114,8.0,2449.5,2448.7,0.13479554]
[1747665936316,4.89676846,2449.6,2449.1,4.08305886]
[1747665936645,4.89676846,2449.6,2448.7,6.93884661]
[1747665936646,8.0,2449.4,2449.0,4.08324505]
[1747665937054,8.8144,2449.6,2449.1,0.55]
[1747665937251,8.0,2449.5,2449.1,0.55]
[1747665937422,8.0,2449.5,2449.3,4.08276865]
[1747665937643,8.0,2449.5,2449.2,4.08287759]
[1747665937827,8.0,2449.5,2449.2,4.08294653]
[1747665938029,8.0,2449.5,2449.1,5.22913507]
[1747665938242,4.89672433,2449.6,2449.2,4.08296173]
[1747665938442,4.89672433,2449.6,2449.1,4.08302558]
[1747665938840,4.08250161,2449.5,2449.1,4.08302558]
[1747665939041,4.0824751,2449.5,2449.1,4.08302558]
[1747665939236,4.89676774,2449.6,2449.1,4.08302558]
[1747665939428,4.0826138,2449.5,2449.0,4.860605]
[1747665939633,4.08296466,2449.3,2448.8,4.08347934]
[1747665939856,4.88748968,2449.2,2448.9,0.13061123]
[1747665940171,12.0832993,2449.0,2448.9,0.13061123]
[1747665941169,8.0,2449.0,2448.9,0.13061123]
[1747665941353,16.467,2449.0,2448.9,0.13061123]
[1747665941755,8.0,2448.9,2448.5,0.55]
[1747665941957,8.0,2448.9,2448.5,4.08413314]
[1747665942160,8.0,2449.0,2448.6,4.0838819]
[1747665942375,8.31302926,2449.0,2448.6,4.0838819]
[1747665942536,4.08358222,2448.9,2448.3,4.21926215]
[1747665942743,4.08358222,2448.9,2448.5,4.08413057]
[1747665943034,12.39640609,2449.0,2448.6,0.13063416]
[1747665943240,12.39647341,2449.0,2448.6,0.13063416]
[1747665943440,12.39644909,2449.0,2448.6,0.13063416]
[1747665943840,8.31302926,2449.0,2448.6,4.21455651]
[1747665944041,8.31302926,2449.0,2448.6,0.96051399]
[1747665944277,8.31302926,2449.0,2448.7,4.08364926]
[1747665944481,8.31302926,2449.0,2448.7,0.12756472]
[1747665944638,8.31302926,2449.0,2448.6,0.13063416]
[1747665944979,12.39645869,2449.0,2448.8,0.13063416]
[1747665945486,4.90667863,2449.3,2448.8,4.99299419]
[1747665945639,4.90667863,2449.3,2448.8,4.21419419]
[1747665945978,4.08298963,2449.2,2448.9,0.12755845]
[1747665946140,4.0832993,2449.0,2448.9,0.25819261]
[1747665946341,4.08379956,2448.7,2448.6,0.13479554]
[1747665946538,8.92929995,2448.7,2448.6,0.13479554]
[1747665947444,16.92929995,2448.7,2448.6,0.13479554]
[1747665947740,16.92929995,2448.7,2447.3,8.465]
[1747665947741,12.08496732,2448.0,2447.9,0.17972989]
[1747665947946,21.33066732,2448.0,2447.9,0.17972989]
[1747665948547,21.64241336,2448.0,2447.9,0.17972989]
[1747665950756,4.0856237,2447.7,2447.2,4.08621093]
[1747665950953,9.55744604,2448.0,2447.2,4.08621093]
[1747665950954,1.09344604,2448.0,2447.3,0.55]
[1747665951271,8.0,2447.9,2447.6,4.08550602]
[1747665951577,8.0,2447.9,2447.3,4.63613185]
[1747665951779,8.77574604,2448.0,2447.3,4.63613185]
[1747665951780,8.77574604,2448.0,2447.7,4.85136799]
[1747665951980,8.464,2448.0,2447.7,4.08539526]
[1747665952187,8.464,2448.0,2447.5,4.85163142]
[1747665952188,8.77751072,2448.0,2447.5,0.7659]
[1747665952480,8.77751072,2448.0,2447.6,4.08561307]
[1747665952687,8.468,2448.2,2448.0,4.08496135]
[1747665952890,8.468,2448.2,2447.7,0.55]
[1747665952891,8.464,2448.1,2447.7,0.55]
[1747665953100,8.464,2448.1,2447.6,4.08563025]
[1747665953409,8.464,2448.1,2447.7,4.63531452]
[1747665953564,8.464,2448.1,2447.8,4.08520507]
[1747665954267,8.464,2448.1,2447.6,0.55]
[1747665954503,8.464,2448.1,2447.7,4.08545512]
[1747665954702,4.08508833,2448.0,2447.6,0.55]
[1747665954863,12.54881454,2448.1,2447.4,0.55]
[1747665954864,12.78390379,2448.1,2447.4,0.55]
[1747665955065,4.08520425,2447.9,2447.4,4.63596241]
[1747665955268,4.08537267,2447.8,2447.4,0.55]
[1747665955619,4.08521964,2447.9,2447.4,4.63589476]
[1747665955768,0.7737,2447.8,2447.1,0.97702989]
[1747665955971,16.47,2447.7,2447.1,0.17972989]
[1747665956168,4.08606444,2447.4,2447.1,0.17972989]
[1747665956425,4.01650039,2447.5,2447.1,0.17972989]
[1747665956728,12.0858721,2447.5,2447.1,0.17972989]
[1747665956926,4.08603838,2447.4,2447.1,0.17972989]
[1747665957127,4.91510943,2447.2,2446.7,4.0869845]